bitfinex-derivatives/quotes_ETHF0:USTF0_20250501
["timestamp","ask_amount","ask_price","bid_price","bid_amount"]
[1746061937501,4.31665,1803.6,1803.1,52.53305348]
[1746061937699,8.58712546,1803.6,1803.2,4.78548]
[1746061938001,11.16425546,1803.6,1803.5,1.10889]
[1746061938811,12.27308546,1803.6,1803.5,1.10889]
[1746061939512,10.4845,1803.6,1803.5,1.10889]
[1746061939710,8.38553,1803.6,1803.5,1.10889]
[1746061940411,7.2767,1803.6,1803.5,1.10889]
[1746061940606,3.686,1803.6,1803.5,1.10889]
[1746061941206,5.3502,1803.6,1803.5,1.10889]
[1746061941411,5.3502,1803.6,1803.5,2.83929]
[1746061941613,3.2078,1803.8,1803.7,1.10877]
[1746061941912,4.824,1803.8,1803.7,1.10877]
[1746061942113,5.50375546,1803.8,1803.7,1.10877]
[1746061942413,1.10877,1803.7,1803.6,3.89828]
[1746061942711,2.29595546,1803.7,1803.6,3.89828]
[1746061942912,1.6162,1803.7,1803.6,4.07158726]
[1746061943108,2.72497,1803.7,1803.6,4.07158726]
[1746061943508,2.72497,1803.7,1803.6,3.89828]
[1746061943810,3.40472546,1803.7,1803.6,0.17330673]
[1746061944210,3.40472546,1803.7,1803.6,1.28213673]
[1746061944411,3.40472546,1803.7,1803.6,1.10883]
[1746061944608,3.40475546,1803.7,1803.6,1.10883]
[1746061945617,3.40477546,1803.7,1803.6,1.10883]
[1746061946110,3.40477546,1803.7,1803.4,7.34652348]
[1746061946111,1.10883,1803.6,1803.5,1.10885]
[1746061946319,3.75413,1803.6,1803.5,1.10885]
[1746061946614,4.43388546,1803.6,1803.5,1.10885]
[1746061947010,3.32505546,1803.6,1803.5,1.10885]
[1746061948611,6.53285546,1803.6,1803.3,7.34652348]
[1746061948914,6.53285546,1803.6,1803.3,8.45552348]
[1746061948915,0.67975546,1803.4,1803.3,8.45552348]
[1746061949115,0.67975546,1803.4,1803.3,8.62884523]
[1746061949415,2.26585546,1803.4,1803.3,8.62884523]
[1746061949715,5.47365546,1803.4,1803.3,8.62884523]
[1746061950116,2.26585546,1803.4,1803.3,8.62884523]
[1746061950422,2.26585546,1803.4,1803.3,1.28232175]
[1746061950608,6.58261546,1803.4,1803.3,0.17332175]
[1746061950810,6.58261546,1803.4,1803.2,1.10908]
[1746061951010,3.27395546,1803.3,1803.2,1.10908]
[1746061951510,2.5942,1803.3,1803.2,1.28240914]
[1746061951712,1.6208,1803.3,1803.2,1.28240914]
[1746061952017,3.12049,1803.5,1803.4,1.10896]
[1746061952419,3.80024546,1803.5,1803.4,1.10896]
[1746061953120,2.69135546,1803.5,1803.4,1.10896]
[1746061953321,4.31215546,1803.5,1803.4,1.10896]
[1746061954323,5.42104546,1803.5,1803.4,1.10896]
[1746061954623,4.31215546,1803.5,1803.4,1.10896]
[1746061954920,5.42104546,1803.5,1803.3,1.10897]
[1746061955113,2.37785546,1803.4,1803.3,1.10897]
[1746061955621,2.37785546,1803.4,1803.3,1.28229319]
[1746061955925,6.69461546,1803.4,1803.3,0.17332319]
[1746061956317,10.48261546,1803.4,1803.3,7.51984667]
[1746061956619,10.48261546,1803.4,1803.3,7.34652348]
[1746061958918,15.48261546,1803.4,1803.3,7.34652348]
[1746061959520,10.48261546,1803.4,1803.3,7.34652348]
[1746061960226,10.48261546,1803.4,1803.1,15.75517611]
[1746061960227,1.10907,1803.3,1803.1,1.10913]
[1746061960423,1.68525546,1803.2,1803.1,1.10913]
[1746061960616,2.79433546,1803.2,1803.1,1.10913]
[1746061960818,4.41713546,1803.2,1803.1,1.10913]
[1746061963024,3.30805546,1803.2,1803.1,1.10913]
[1746061963719,3.30805546,1803.2,1803.1,2.77183]
[1746061964032,4.41713546,1803.2,1803.1,2.77183]
[1746061964325,3.30805546,1803.2,1803.1,2.77183]
[1746061964728,4.41713546,1803.2,1803.1,1.10913]
[1746061965429,4.41713546,1803.2,1803.0,8.45568348]
[1746061965430,1.10914,1803.1,1803.0,8.45568348]
[1746061965624,4.58189546,1803.1,1803.0,8.45568348]
[1746061965821,3.47275546,1803.1,1803.0,8.45568348]
[1746061966021,4.58189546,1803.1,1803.0,8.45568348]
[1746061967030,3.47275546,1803.1,1803.0,8.45568348]
[1746061967225,3.47275546,1803.1,1803.0,1.10916]
[1746061968930,4.58189546,1803.1,1803.0,1.10916]
[1746061969541,3.47275546,1803.1,1803.0,1.10916]
[1746061969930,3.47275546,1803.1,1803.0,1.28249972]
[1746061970131,1.7202,1803.1,1803.0,1.28249972]
[1746061970436,1.7202,1803.1,1803.0,2.35029972]
[1746061970734,3.2078,1803.2,1803.1,1.10914]
[1746061970942,3.88755546,1803.2,1803.1,3.75864]
[1746061971231,5.61975546,1803.2,1803.1,3.93197972]
[1746061971934,5.61975546,1803.2,1803.1,44.73197972]
[1746061972132,5.61975546,1803.2,1803.1,44.55864]
[1746061972337,6.72883546,1803.2,1803.1,44.55864]
[1746061972528,5.61975546,1803.2,1803.1,44.55864]
[1746061973737,2.41195546,1803.2,1803.1,44.55864]
[1746061974141,2.41195546,1803.2,1803.1,44.73197762]
[1746061977231,3.655,1803.3,1803.2,1.10908]
[1746061977432,4.33475546,1803.3,1803.2,2.76018]
[1746061977838,4.33475546,1803.3,1803.2,2.93351762]
[1746061978037,7.03747546,1803.3,1803.2,2.93351762]
[1746061978239,5.92845546,1803.3,1803.2,2.93351762]
[1746061978638,7.03747546,1803.3,1803.2,1.28241762]
[1746061978844,7.03747546,1803.3,1803.2,1.10908]
[1746061979232,5.92845546,1803.3,1803.1,40.8]
[1746061979440,3.38253546,1803.2,1803.1,41.90909]
[1746061979748,3.38253546,1803.2,1803.1,40.8]
[1746061979943,6.59033546,1803.2,1803.1,40.8]
[1746061980240,7.17053546,1803.2,1803.1,41.90914]
[1746061982448,3.38253546,1803.2,1803.1,41.90914]
[1746061983545,6.59033546,1803.2,1803.1,40.8]
[1746061983949,6.59033546,1803.2,1803.1,41.90914]
[1746061984150,10.37833546,1803.2,1803.1,41.90914]
[1746061985563,10.37833546,1803.2,1803.1,40.8]
[1746061985756,12.04196546,1803.2,1802.8,7.34652348]
[1746061985951,0.67975546,1802.9,1802.8,8.45580348]
[1746061986157,0.67975546,1802.9,1802.8,49.42917981]
[1746061986356,1.6947,1802.9,1802.8,49.42917981]
[1746061986551,1.6947,1802.9,1802.8,51.07047981]
[1746061987162,1.6947,1802.9,1802.8,43.72395633]
[1746061987862,2.37445546,1802.9,1802.8,43.72396035]
[1746061990055,1.6947,1802.9,1802.8,43.72396035]
[1746061990764,3.634,1803.0,1802.9,1.10926]
[1746061990958,3.634,1803.0,1802.9,4.00394035]
[1746061991770,3.6586,1803.1,1803.0,1.1092]
[1746061991968,4.33835546,1803.1,1803.0,2.92188035]
[1746061992572,2.28645546,1803.1,1803.0,2.92188035]
[1746061992870,2.28645546,1803.1,1803.0,3.92308035]
[1746061993172,1.10891,1803.5,1803.4,1.10892]
[1746061993369,3.75801,1803.5,1803.4,1.10892]
[1746061993562,4.43776546,1803.5,1803.4,41.90892]
[1746061994065,4.43776546,1803.5,1803.4,40.8]
[1746061994265,4.43776546,1803.5,1803.4,41.90896]
[1746061995264,8.22576546,1803.5,1803.4,41.90896]
[1746061995666,7.11685546,1803.5,1803.4,41.90896]
[1746061996272,3.32885546,1803.5,1803.4,41.90896]
[1746061996474,1.644,1803.5,1803.4,41.90896]
[1746061996673,1.644,1803.5,1803.4,43.09427144]
[1746061997372,1.644,1803.5,1803.4,44.79937144]
[1746061998772,1.644,1803.5,1803.4,44.62606]
[1746062001774,2.32375546,1803.5,1803.4,44.62606]
[1746062001976,2.32375546,1803.5,1803.4,43.61406]
[1746062005378,3.43264546,1803.5,1803.4,41.90896]
[1746062005679,3.43264546,1803.5,1803.4,40.8]
[1746062006179,1.10896,1803.4,1803.3,7.34652348]
[1746062006373,3.40851546,1803.4,1803.3,7.34652348]
[1746062007177,7.19651546,1803.4,1803.3,7.34652348]
[1746062009078,7.19651546,1803.4,1803.1,56.55517611]
[1746062009079,1.10908,1803.2,1803.1,41.90913]
[1746062009271,1.78883546,1803.2,1803.1,41.90913]
[1746062009580,1.78883546,1803.2,1803.1,40.8]
[1746062009784,3.44993546,1803.2,1803.1,40.8]
[1746062009975,1.10914,1803.1,1802.9,7.34652348]
[1746062010282,3.44999546,1803.1,1803.0,1.1092]
[1746062010483,2.77024,1803.1,1803.0,41.9092]
[1746062013183,1.6611,1803.1,1803.0,41.9092]
[1746062013382,1.6611,1803.1,1803.0,43.5274]
[1746062013987,2.34085546,1803.1,1803.0,43.5274]
[1746062014488,3.44999546,1803.1,1803.0,43.5274]
[1746062014974,3.44999546,1803.1,1803.0,41.9092]
[1746062015377,3.44999546,1803.1,1803.0,40.8]
[1746062016080,3.44999546,1803.1,1803.0,41.9092]
[1746062016286,3.44999546,1803.1,1803.0,40.8]
[1746062018088,3.44999546,1803.1,1803.0,41.9092]
[1746062018281,3.44999546,1803.1,1803.0,40.8]
[1746062018688,6.65779546,1803.1,1803.0,40.8]
[1746062019079,6.65779546,1803.1,1802.8,9.44162348]
[1746062019080,1.10926,1802.9,1802.8,7.34652348]
[1746062019280,0.67975546,1802.9,1802.8,7.34652348]
[1746062019586,7.3381,1803.0,1802.8,11.09940348]
[1746062019789,0.67975546,1802.9,1802.8,11.09940348]
[1746062020388,7.3381,1803.0,1802.9,1.10926]
[1746062020781,8.01785546,1803.0,1802.9,1.10926]
[1746062022085,8.01785546,1803.0,1802.8,2.6436]
[1746062022086,4.31686,1803.3,1803.0,1.10917]
[1746062022291,0.67975546,1803.1,1803.0,1.10917]
[1746062022685,2.30505546,1803.1,1803.0,1.10917]
[1746062026088,8.20184546,1803.1,1802.9,1.10925]
[1746062026290,2.27265546,1803.0,1802.9,1.10925]
[1746062027290,3.38185546,1803.0,1802.9,1.10925]
[1746062027489,1.10927,1802.9,1802.8,1.10926]
[1746062027794,3.35205546,1802.9,1802.8,1.10926]
[1746062029091,4.46131546,1802.9,1802.8,1.10926]
[1746062029895,3.35205546,1802.9,1802.8,1.10926]
[1746062030196,4.46131546,1802.9,1802.8,1.10926]
[1746062030592,3.35205546,1802.9,1802.7,3.2078]
[1746062030792,3.45145546,1802.8,1802.7,4.31719]
[1746062034091,4.56077546,1802.8,1802.7,4.31719]
[1746062034295,3.45145546,1802.8,1802.7,4.31719]
[1746062034896,3.45145546,1802.8,1802.7,1.10939]
[1746062035196,4.56077546,1802.8,1802.7,1.10939]
[1746062036090,3.45145546,1802.8,1802.7,1.10939]
[1746062037694,4.56077546,1802.8,1802.7,1.10939]
[1746062038096,3.45145546,1802.8,1802.7,1.10939]
[1746062038796,4.56077546,1802.8,1802.7,1.10939]
[1746062040297,4.56077546,1802.8,1802.6,43.5924]
[1746062040592,0.67975546,1802.7,1802.6,43.5924]
[1746062040797,0.67975546,1802.7,1802.6,44.87523522]
[1746062040997,1.0616,1802.8,1802.7,1.10939]
[1746062041502,2.85070546,1802.8,1802.7,1.10939]
[1746062041796,6.05847546,1802.8,1802.7,1.10939]
[1746062042197,4.94915546,1802.8,1802.7,1.10939]
[1746062043093,1.74135546,1802.8,1802.7,1.10939]
[1746062045602,2.85067546,1802.8,1802.7,1.10939]
[1746062046903,1.74135546,1802.8,1802.7,1.10939]
[1746062047303,2.85067546,1802.8,1802.7,1.10939]
[1746062047602,1.74135546,1802.8,1802.7,1.10939]
[1746062048799,2.85067546,1802.8,1802.7,1.10939]
[1746062049603,1.74135546,1802.8,1802.7,1.10939]
[1746062050708,2.85067546,1802.8,1802.7,1.10939]
[1746062052507,6.05847546,1802.8,1802.7,1.10939]
[1746062053207,2.85067546,1802.8,1802.7,1.10939]
[1746062054616,4.52567546,1802.8,1802.7,1.10939]
[1746062055508,4.52567546,1802.8,1802.7,1.28277751]
[1746062056109,4.52567546,1802.8,1802.7,0.17338751]
[1746062056414,1.10945,1802.6,1802.5,7.34652348]
[1746062056618,4.99700546,1802.6,1802.5,7.34652348]
[1746062056820,4.99700546,1802.6,1802.5,8.45603348]
[1746062057022,6.04800546,1802.6,1802.5,8.62944446]
[1746062057223,9.83600546,1802.6,1802.5,8.62944446]
[1746062057614,8.72655546,1802.6,1802.5,8.62944446]
[1746062057817,8.72655546,1802.6,1802.5,10.32454446]
[1746062058011,10.35695546,1802.6,1802.5,10.32454446]
[1746062058217,6.56895546,1802.6,1802.5,10.32454446]
[1746062059023,3.36115546,1802.6,1802.5,10.32454446]
[1746062059823,3.36115546,1802.6,1802.5,10.32455353]
[1746062060023,4.47060546,1802.6,1802.5,2.97803005]
[1746062061425,4.47060546,1802.6,1802.5,2.80461]
[1746062061617,4.47060546,1802.6,1802.5,2.97800763]
[1746062063527,4.47060546,1802.6,1802.5,1.28290763]
[1746062063919,4.47060546,1802.6,1802.5,0.17339763]
[1746062064127,8.25860546,1802.6,1802.5,0.17339763]
[1746062064521,11.46640546,1802.6,1802.5,0.17339763]
[1746062065027,3.788,1802.6,1802.5,1.10951]
[1746062065227,4.8975,1802.6,1802.5,1.10951]
[1746062065427,5.57725546,1802.6,1802.5,1.10951]
[1746062065629,7.29095546,1802.6,1802.5,1.28291366]
[1746062066127,3.50295546,1802.6,1802.5,1.28291366]
[1746062066525,3.50295546,1802.6,1802.5,0.17340366]
[1746062066828,1.7137,1802.6,1802.5,1.28291366]
[1746062067028,2.82315,1802.6,1802.5,2.89921366]
[1746062068125,1.7137,1802.6,1802.5,2.89921366]
[1746062068825,1.10942,1802.7,1802.6,1.10945]
[1746062069028,1.10942,1802.7,1802.6,3.91865366]
[1746062069227,2.78342,1802.7,1802.6,3.91865366]
[1746062070122,1.674,1802.7,1802.6,3.91865366]
[1746062070724,2.35375546,1802.7,1802.6,3.91865366]
[1746062071327,1.674,1802.7,1802.6,3.91865366]
[1746062071525,6.8398,1802.8,1802.7,1.10939]
[1746062071729,3.2078,1802.8,1802.7,3.91199366]
[1746062072529,1.10904,1803.3,1802.8,2.77332]
[1746062072730,0.67975546,1803.2,1803.1,1.10914]
[1746062073120,1.7121,1803.2,1803.1,1.10914]
[1746062073319,1.7121,1803.2,1803.1,1.28249529]
[1746062073732,2.0858,1803.3,1803.2,1.10908]
[1746062073935,3.7979,1803.3,1803.2,1.10908]
[1746062074231,3.7979,1803.3,1803.2,2.76168]
[1746062074427,4.90692,1803.3,1803.2,2.76168]
[1746062074733,3.7979,1803.3,1803.2,2.76168]
[1746062075034,3.7979,1803.3,1803.2,10.106628]
[1746062075334,1.109,1803.4,1803.3,1.10902]
[1746062075530,4.8947,1803.4,1803.3,1.10902]
[1746062077133,1.10902,1803.3,1803.2,10.106618]
[1746062077333,2.80912,1803.3,1803.2,10.106618]
[1746062077734,2.80912,1803.3,1803.2,8.454018]
[1746062077934,2.80912,1803.3,1803.2,1.10907]
[1746062079634,3.48887546,1803.3,1803.2,1.10907]
[1746062082936,2.37985546,1803.3,1803.2,1.10907]
[1746062083837,3.48887546,1803.3,1803.2,1.10907]
[1746062084140,1.10908,1803.2,1803.1,4.31691]
[1746062084339,3.47943546,1803.2,1803.1,4.31691]
[1746062084829,2.37035546,1803.2,1803.1,4.31691]
[1746062085638,2.37035546,1803.2,1803.1,1.10911]
[1746062086234,3.47943546,1803.2,1803.1,1.10911]
[1746062086542,2.37035546,1803.2,1803.1,1.10911]
[1746062087442,2.37035546,1803.2,1802.9,11.099288]
[1746062087646,0.67975546,1803.0,1802.9,8.454188]
[1746062088134,1.5958,1803.0,1802.9,10.167388]
[1746062088742,1.5958,1803.0,1802.9,2.82244]
[1746062090146,2.159,1803.1,1803.0,1.1092]
[1746062090348,2.159,1803.1,1803.0,2.8224]
[1746062090646,3.7548,1803.1,1803.0,2.8224]
[1746062091953,1.5958,1803.1,1803.0,6.0302]
[1746062092540,3.2078,1803.6,1803.1,2.7728]
[1746062092744,2.26615546,1803.4,1803.3,1.10902]
[1746062092947,2.26615546,1803.4,1803.3,6.06292]
[1746062093147,1.5864,1803.4,1803.3,6.06292]
[1746062094358,1.1054,1803.5,1803.4,1.10896]
[1746062094556,5.362,1803.6,1803.5,1.10889]
[1746062094853,3.52158546,1803.6,1803.5,1.10889]
[1746062095042,2.41275546,1803.6,1803.5,1.10889]
[1746062096854,1.10889,1803.5,1803.4,2.81853]
[1746062097153,4.76919,1803.5,1803.4,2.81853]
[1746062097955,3.6603,1803.5,1803.4,2.81853]
[1746062098153,4.76919,1803.5,1803.4,1.10893]
[1746062098354,4.34005546,1803.5,1803.3,4.31682]
[1746062098543,1.6332,1803.4,1803.3,4.31682]
[1746062098953,1.6332,1803.4,1803.3,4.49013419]
[1746062099254,2.31295546,1803.4,1803.3,4.49013419]
[1746062099655,3.13602,1803.5,1803.4,1.10896]
[1746062099656,2.0271,1803.5,1803.4,1.10896]
[1746062099849,2.70685546,1803.5,1803.4,2.73076]
[1746062100050,2.70685546,1803.5,1803.4,1.10896]
[1746062100352,2.70685546,1803.5,1803.3,4.31678]
[1746062100560,2.33925546,1803.4,1803.3,4.31678]
[1746062101456,2.33925546,1803.4,1803.3,4.49009134]
[1746062102958,1.6595,1803.4,1803.3,4.49009134]
[1746062103160,1.6595,1803.4,1803.3,6.22799134]
[1746062103459,1.6595,1803.4,1803.3,7.27849134]
[1746062104860,2.33925546,1803.4,1803.3,4.49009134]
[1746062105559,3.44821546,1803.4,1803.3,4.49009134]
[1746062106056,3.44821546,1803.4,1803.3,1.28229134]
[1746062106461,2.33925546,1803.4,1803.3,1.28229134]
[1746062108462,1.6595,1803.4,1803.3,6.14609134]
[1746062110054,1.6595,1803.4,1803.3,7.22979134]
[1746062111163,2.0271,1803.5,1803.4,1.10896]
[1746062111358,4.44005546,1803.5,1803.4,2.81286]
[1746062113467,1.7332,1803.5,1803.4,2.81286]
[1746062113964,1.7332,1803.5,1803.4,2.98616384]
[1746062115565,2.41295546,1803.5,1803.4,1.28226384]
[1746062116865,3.52184546,1803.5,1803.4,1.28226384]
[1746062118061,3.52184546,1803.5,1803.4,0.17330384]
[1746062118565,3.52184546,1803.5,1803.3,11.661768]
[1746062118566,1.10896,1803.4,1803.3,11.661768]
[1746062118766,5.68541546,1803.4,1803.3,11.661768]
[1746062118965,5.68541546,1803.4,1803.3,8.62729822]
[1746062119168,4.57645546,1803.4,1803.3,8.62729822]
[1746062119369,4.57645546,1803.4,1803.3,8.453968]
[1746062119569,4.57645546,1803.4,1803.3,8.6272982]
[1746062120279,1.10882,1803.7,1803.3,11.8350982]
[1746062120582,2.40975546,1803.5,1803.4,2.9658902]
[1746062121269,1.73,1803.5,1803.4,2.9658902]
[1746062122374,1.73,1803.5,1803.4,2.79256]
[1746062122875,1.73,1803.5,1803.4,2.96585946]
[1746062124585,3.27642,1803.7,1803.6,1.10883]
[1746062124986,3.95617546,1803.7,1803.6,1.28212946]
[1746062126081,5.63787546,1803.7,1803.6,0.17329946]
[1746062126282,1.10883,1803.6,1803.5,1.10885]
[1746062126479,3.47028546,1803.6,1803.5,1.10885]
[1746062126681,1.6817,1803.6,1803.5,1.28215414]
[1746062128983,2.36145546,1803.6,1803.5,1.28215414]
[1746062131389,3.47028546,1803.6,1803.5,1.28215414]
[1746062131683,2.36145546,1803.6,1803.5,1.28215414]
[1746062132188,3.47028546,1803.6,1803.5,1.28215414]
[1746062132688,2.36145546,1803.6,1803.5,1.28215414]
[1746062133589,3.47028546,1803.6,1803.5,1.28215414]
[1746062135689,2.36145546,1803.6,1803.5,1.28215414]
[1746062136088,3.47028546,1803.6,1803.5,1.28215414]
[1746062136482,2.36145546,1803.6,1803.5,1.28215414]
[1746062137487,3.47028546,1803.6,1803.5,1.28215414]
[1746062138390,2.36145546,1803.6,1803.5,8.62710214]
[1746062138792,3.47028546,1803.6,1803.5,8.62710214]
[1746062139296,6.14945546,1803.6,1803.5,8.62710214]
[1746062140196,2.36145546,1803.6,1803.5,8.62710214]
[1746062140995,2.36145546,1803.6,1803.5,21.83806702]
[1746062142790,3.788,1804.0,1803.9,1.10865]
[1746062142991,5.8933,1804.0,1803.9,1.10865]
[1746062143298,6.57305546,1804.0,1803.9,1.28195414]
[1746062143492,6.57305546,1804.0,1803.9,42.08195414]
[1746062143799,6.57305546,1804.0,1803.9,41.90865]
[1746062145194,2.78505546,1804.0,1803.9,41.90865]
[1746062145595,2.78505546,1804.0,1803.9,45.11645]
[1746062145894,2.78505546,1804.0,1803.9,45.28971432]
[1746062146396,3.788,1804.1,1804.0,1.10859]
[1746062146598,4.46775546,1804.1,1804.0,2.69389]
[1746062146988,4.46775546,1804.1,1804.0,2.86715432]
[1746062147192,0.67975546,1804.1,1804.0,2.86715432]
[1746062147797,1.1071,1804.3,1804.2,1.10846]
[1746062148093,1.78685546,1804.3,1804.2,1.10846]
[1746062149299,1.78685546,1804.3,1804.2,2.68276]
[1746062149496,3.35835546,1804.3,1804.2,2.68276]
[1746062150095,0.67975546,1804.3,1804.2,2.68276]
[1746062150400,1.0528,1804.4,1804.3,1.1084]
[1746062150698,3.6485,1804.4,1804.3,1.1084]
[1746062150897,4.32825546,1804.4,1804.3,1.1084]
[1746062151099,4.89618,1804.7,1804.3,44.0078]
[1746062151300,0.67975546,1804.5,1804.4,1.5743]
[1746062151597,0.67975546,1804.5,1804.4,2.68264]
[1746062152601,1.0242,1804.7,1804.6,1.10822]
[1746062152790,3.2078,1804.8,1804.7,1.10816]
[1746062152989,0.67975546,1804.8,1804.6,1.10822]
[1746062153189,0.67975546,1804.8,1804.7,1.10816]
[1746062153602,0.67975546,1804.8,1804.7,2.71236]
[1746062154204,0.67975546,1804.8,1804.7,5.92016]
[1746062154695,1.6099,1804.9,1804.8,1.1081]
[1746062154895,1.6099,1804.9,1804.8,2.8248]
[1746062155095,2.28965546,1804.9,1804.8,2.8248]
[1746062156902,0.67975546,1804.9,1804.8,2.8248]
[1746062159905,2.30925546,1804.9,1804.8,2.8248]
[1746062160603,3.41728546,1804.9,1804.8,2.8248]
[1746062160808,2.30925546,1804.9,1804.7,3.2078]
[1746062161006,3.8198,1804.8,1804.7,4.31596]
[1746062161306,3.8198,1804.8,1804.7,3.2078]
[1746062161607,3.8198,1804.8,1804.7,40.8]
[1746062162097,7.6078,1804.8,1804.7,41.90816]
[1746062162600,8.28755546,1804.8,1804.7,41.90816]
[1746062164206,8.28755546,1804.8,1804.7,40.8]
[1746062165205,8.28755546,1804.8,1804.7,41.90816]
[1746062165607,8.28755546,1804.8,1804.7,40.8]
[1746062165908,6.4997,1804.8,1804.7,45.11596]
[1746062166094,2.7117,1804.8,1804.7,45.11596]
[1746062166500,2.7117,1804.8,1804.7,46.76666]
[1746062167712,1.1022,1805.1,1805.0,1.10797]
[1746062168103,2.736,1805.2,1805.1,1.10791]
[1746062168303,2.736,1805.2,1805.1,4.31571]
[1746062168601,3.41575546,1805.2,1805.1,4.31571]
[1746062169206,0.67975546,1805.2,1805.1,4.31571]
[1746062169412,1.10775,1805.4,1805.1,5.38526]
[1746062169704,1.10785,1805.2,1805.1,3.2078]
[1746062169903,1.78760546,1805.2,1805.1,3.2078]
[1746062170105,3.788,1805.2,1805.1,3.2078]
[1746062170305,3.788,1805.2,1805.1,4.31571]
[1746062170504,5.5098,1805.2,1805.1,6.02041]
[1746062170714,6.606,1805.2,1805.1,4.9125]
[1746062171712,7.28575546,1805.2,1805.1,6.02041]
[1746062173210,3.49775546,1805.2,1805.1,6.02041]
[1746062173413,4.60560546,1805.2,1805.1,3.2078]
[1746062174114,8.39360546,1805.2,1805.1,3.2078]
[1746062174811,8.39360546,1805.2,1805.1,4.31571]
[1746062175011,7.28575546,1805.2,1805.1,4.31571]
[1746062180520,3.788,1805.2,1805.1,4.31571]
[1746062180722,3.788,1805.2,1805.1,5.37311]
[1746062181221,3.7249,1805.4,1805.3,1.10779]
[1746062181622,4.40465546,1805.4,1805.3,1.10779]
[1746062181815,1.0382,1805.4,1805.3,4.31559]
[1746062182011,4.40465546,1805.4,1805.3,1.10779]
[1746062182615,3.7249,1805.4,1805.3,1.10779]
[1746062182824,4.40465546,1805.4,1805.3,1.10779]
[1746062183523,3.788,1805.5,1805.4,1.10773]
[1746062183916,4.46775546,1805.5,1805.4,1.10773]
[1746062184119,2.42415546,1805.5,1805.4,1.10773]
[1746062185218,6.21215546,1805.5,1805.4,1.10773]
[1746062185424,6.21215546,1805.5,1805.4,2.74933]
[1746062186120,6.21215546,1805.5,1805.4,1.6416]
[1746062186329,6.21215546,1805.5,1805.4,2.74933]
[1746062188119,3.788,1805.5,1805.4,2.74933]
[1746062188429,3.615,1806.1,1805.5,1.10767]
[1746062188627,0.67975546,1805.7,1805.6,2.74328]
[1746062189126,3.8954,1805.8,1805.6,2.74328]
[1746062189425,1.78731546,1805.7,1805.5,5.36783]
[1746062189622,0.67975546,1805.6,1805.5,1.10767]
[1746062190021,1.10748,1805.8,1805.5,1.0524]
[1746062190228,0.67975546,1805.7,1805.6,1.6357]
[1746062190620,1.77265546,1805.7,1805.6,1.6357]
[1746062190924,4.57519546,1805.7,1805.3,5.97725]
[1746062191234,0.67975546,1805.6,1805.4,1.6357]
[1746062191539,0.67975546,1805.6,1805.5,1.10767]
[1746062191732,0.67975546,1805.6,1805.5,2.13557]
[1746062192032,3.788,1805.7,1805.6,1.1076]
[1746062192332,0.67975546,1805.7,1805.6,3.7501]
[1746062192830,0.67975546,1805.7,1805.6,44.5501]
[1746062195134,1.6317,1805.8,1805.7,1.10754]
[1746062195431,2.1574,1806.0,1805.9,1.10742]
[1746062195834,4.46785546,1806.0,1805.9,1.10742]
[1746062196238,8.25585546,1806.0,1805.9,2.74462]
[1746062196436,8.25585546,1806.0,1805.9,1.10742]
[1746062198239,7.16425546,1806.0,1805.9,1.10742]
[1746062198428,2.76755,1806.6,1805.9,1.10742]
[1746062198429,3.611,1806.9,1806.2,2.76809]
[1746062198632,4.94492,1807.0,1806.6,1.10698]
[1746062198931,2.7554,1806.9,1806.7,41.90689]
[1746062199134,1.684,1806.8,1806.7,41.90689]
[1746062200240,1.15987,1807.0,1806.9,1.10017]
[1746062200532,2.80852,1807.0,1806.9,1.10017]
[1746062201139,7.7033,1807.0,1806.8,1.10685]
[1746062201340,1.6593,1806.9,1806.8,1.10685]
[1746062201734,1.10687,1806.8,1806.7,40.8]
[1746062201935,2.76616,1806.9,1806.7,41.90691]
[1746062202234,3.788,1806.8,1806.7,41.90691]
[1746062202435,5.4473,1806.8,1806.7,41.90691]
[1746062202833,3.788,1806.8,1806.7,45.11471]
[1746062204434,3.788,1806.8,1806.7,46.16631]
[1746062205039,3.788,1806.8,1806.7,45.11471]
[1746062206744,4.89487,1806.8,1806.7,44.0078]
[1746062207136,5.94767,1806.8,1806.7,44.0078]
[1746062207335,5.94767,1806.8,1806.7,45.11473]
[1746062208043,5.94767,1806.8,1806.7,40.8]
[1746062208542,4.8408,1806.8,1806.7,41.90693]
[1746062208738,5.94767,1806.8,1806.7,40.8]
[1746062209341,10.94767,1806.8,1806.7,40.8]
[1746062209542,5.94767,1806.8,1806.7,40.8]
[1746062209738,10.94767,1806.8,1806.7,40.8]
[1746062210240,1.10705,1806.5,1806.4,1.10709]
[1746062210644,1.10705,1806.5,1806.4,40.8]
[1746062210839,1.10705,1806.5,1806.4,41.90711]
[1746062211344,3.788,1806.5,1806.4,41.90711]
[1746062213948,4.89505,1806.5,1806.4,40.8]
[1746062214345,4.89505,1806.5,1806.4,41.90711]
[1746062214948,4.89505,1806.5,1806.4,40.8]
[1746062215849,4.89505,1806.5,1806.4,41.90711]
[1746062217050,4.89505,1806.5,1806.4,40.8]
[1746062218653,3.788,1806.5,1806.4,41.90711]
[1746062218850,4.89505,1806.5,1806.4,41.90711]
[1746062219646,1.10726,1806.2,1806.1,1.1073]
[1746062219843,2.76784,1806.4,1805.9,9.0378]
[1746062220043,1.10726,1806.2,1806.1,1.10728]
[1746062221144,1.10724,1806.3,1806.2,1.10724]
[1746062221345,1.10716,1806.4,1806.2,1.10724]
[1746062221548,1.10715,1806.4,1806.1,3.2078]
[1746062221755,1.10715,1806.4,1806.3,1.10718]
[1746062222148,4.89515,1806.4,1806.3,1.10718]
[1746062222353,3.788,1806.4,1806.2,1.10722]
[1746062222654,1.10721,1806.3,1806.2,1.10722]
[1746062223154,4.89521,1806.3,1806.2,1.10722]
[1746062223750,1.10724,1806.2,1806.1,1.10727]
[1746062223951,4.89523,1806.3,1806.2,1.10724]
[1746062224150,1.10723,1806.3,1806.2,1.10724]
[1746062225057,1.10716,1806.4,1806.3,1.10716]
[1746062226160,4.89516,1806.4,1806.3,1.10716]
[1746062226559,3.788,1806.4,1806.3,1.10716]
[1746062227260,4.89511,1806.4,1806.3,1.10716]